Cogmind - Beta 15 @@@ ROGUE MODE // 2025.05.21 @ 07:56:54 Player: dbb Result: Destroyed by Y-45 Defender with Heavy Assault Rifle Performance ------------- Evolutions (0) 0 Regions Visited (2) 400 Robots Destroyed (27) 135 Value Destroyed (441) 441 Prototype IDs (3) 60 Alien Tech Used (0) 0 Bonus (0) 0 TOTAL SCORE: 1036 Bonus ------- None Cogmind --------- Core Integrity 0/250 Matter 300/300 Energy 250/250 System Corruption 0% Temperature Cool (9) Movement Core (1450) Ox28 Location -10/Mines Parts ------- > --- POWER (1) -------- Ion Engine > --- PROPULSION (2) --- (None) > --- UTILITY (2) ------ Huge Storage Unit Signal Interpreter > --- WEAPON (2) ------- (None) > --- INVENTORY (25) --- Huge Storage Unit Medium Matter Pod (100) Weight Redist. System Structural Scanner Sensor Array Improved Terrain Scanner Transport Network Coupler Tractor Beam Grenade Launcher Mining Laser Mace Mining Claw Peak State ------------ > --- POWER ------------ Ion Engine > --- PROPULSION ------- Light Treads Light Treads > --- UTILITY ---------- Medium Storage Unit Improved Terrain Scanner > --- WEAPON ----------- EM Pulse Gun EM Pulse Gun > --- INVENTORY -------- Light Treads Huge Storage Unit Medium Matter Pod Structural Scanner Sensor Array Signal Interpreter Tractor Beam Light Assault Rifle Grenade Launcher Mining Laser [Rating: 10] Favorites ----------- Power Ion Engine Engine Ion Engine Propulsion Light Treads Treads Light Treads Utility Huge Storage Unit Device Improved Terrain Scanner Storage Huge Storage Unit Processor Signal Interpreter Weapon EM Pulse Gun Energy Gun EM Pulse Gun Ballistic Gun Light Assault Rifle Special Weapon Mining Laser Build | -11 -10 -10 ------- Run | Yrd Mat Min Slots Evolved . | . . . Power . | . . . Propulsion . | . . . Utility . | . . . Weapon . | . . . Parts Attached 19 | 8 10 1 Power 4 | 1 3 . Engine 4 | 1 3 . Core . | . . . Reactor . | . . . Propulsion 3 | 2 1 . Treads 3 | 2 1 . Leg . | . . . Wheel . | . . . Hover . | . . . Flight . | . . . Utility 7 | 3 3 1 Device 2 | 2 . . Storage 4 | 1 3 . Processor 1 | . . 1 Hackware . | . . . Protection . | . . . Artifact . | . . . Weapon 5 | 2 3 . Energy Gun 2 | 2 . . Energy Cannon . | . . . Ballistic Gun 2 | . 2 . Ballistic Cannon . | . . . Launcher . | . . . Special Weapon 1 | . 1 . Impact Weapon . | . . . Slashing Weapon . | . . . Piercing Weapon . | . . . Special Melee Weapon . | . . . Unidentified Prototypes . | . . . Parts Lost 7 | . 5 2 Power . | . . . Propulsion 3 | . 2 1 Utility . | . . . Weapon 4 | . 3 1 Highest Loss Streak 4 | . 4 2 To Critical Strikes . | . . . Average Backups 10 | 2 10 11 Power . | . . . Propulsion . | . . . Utility 6 | 2 6 8 Weapon 3 | . 3 3 Tool/Special . | . . . Unused Backups 8 | . . 8 Power . | . . . Propulsion . | . . . Utility 5 | . . 5 Weapon 3 | . . 3 Tool/Special . | . . . Average Slot Usage (%) 83 | . 90 70 Engine 14 | . 14 14 Treads 19 | . 23 13 Device 2 | . 3 . Storage 24 | . 24 23 Processor 1 | . . 4 Energy Gun 9 | . 14 . Ballistic Gun 10 | . 8 13 Peak Build Rating 10 | 9 10 6 Average Rating 6 | 5 7 5 On Entrance 5 | . 9 6 Naked Turns . | . . . Heaviest Build 169 | 13 169 166 Greatest Support 40 | 40 40 20 Greatest Overweight (x) 28 | . 8 28 Average Overweight (x) 3 | . 2 6 Largest Inventory Capacity 25 | 8 25 25 Average Capacity 21 | 7 21 25 Most Carried 13 | 4 13 12 Average Carried 10 | 2 10 11 Final Capacity 25 | 8 25 25 Final Carried 12 | 3 11 12 Class Distribution -------------------- 100% | Mutant Dominant Class ---------------- Mutant | -10/Materials Mutant | -10/Mines Resources | -11 -10 -10 ----------- Run | Yrd Mat Min Matter Collected 477 | 364 92 21 Remotely . | . . . Salvage Created 849 | 256 593 . Parts 56 | 25 31 . Haulers Intercepted 2 | . 2 . Recyclers Shooed 1 | . 1 . Parts Field Recycled . | . . . Retrieved Matter . | . . . Parts Self-Destructed . | . . . Prevented . | . . . Kills | -11 -10 -10 ------- Run | Yrd Mat Min Combat Hostiles Destroyed 9 | . 9 . Guns 7 | . 7 . AOE 2 | . 2 . Classes Destroyed 8 | 3 5 . Worker 4 | 2 2 . Tunneler 7 | 6 1 . Hauler 2 | . 2 . Recycler 1 | 1 . . Operator 2 | . 2 . Watcher 2 | . 2 . Swarmer 2 | . 2 . Grunt 7 | . 7 . Best Kill Streak 4 | 4 4 . Combat Bots Only 2 | . 2 . Max Kills in Single Turn 3 | 1 3 . Gunslinging . | . . . Exploded 2 | . 2 . Melee . | . . . Uniques/NPCs Destroyed . | . . . Combat | -11 -10 -10 -------- Run | Yrd Mat Min Hostile Shots Fired 92 | . 52 40 Missed 27 | . 13 14 Hits 65 | . 39 26 Projectile 65 | . 39 26 Critical Strikes 1 | . . 1 Damage Taken 1036 | . 652 384 Core 258 | . 82 176 Absorbed by Shields . | . . . Core Remaining (%) 100 | 100 . . Volleys Fired 71 | 17 54 . Largest 2 | 2 2 . Hottest 100 | 80 100 . Shots Fired 140 | 34 106 . Gun 139 | 34 105 . Cannon . | . . . Launcher . | . . . Special 1 | . 1 . Kinetic 31 | . 31 . Thermal 1 | . 1 . Explosive . | . . . Electromagnetic 108 | 34 74 . Robot Hit Streak 7 | 6 7 . Robot Miss Streak 4 | 3 4 . Penetration Max . | . . . Secondary Targets 2 | . 2 . Max Gunslinging Chain 1 | . 1 . Shots Hit Robots 78 | 17 61 . Core Hits 35 | 10 25 . Critical Kills . | . . . Critical Parts Destroyed . | . . . Critical Strikes 1 | . 1 . Corrupt 1 | . 1 . Melee Attacks . | . . . Impact . | . . . Slashing . | . . . Piercing . | . . . Sneak Attacks . | . . . Combat Hostiles . | . . . Follow-up Attacks . | . . . Damage Inflicted 1406 | 246 1160 . Guns 945 | 213 732 . Cannons . | . . . Explosions 459 | 33 426 . Melee . | . . . Ramming 2 | . 2 . Kinetic 135 | . 135 . Thermal 177 | 33 144 . Explosive 282 | . 282 . Electromagnetic 810 | 213 597 . Impact . | . . . Slashing . | . . . Piercing . | . . . Highest Corruption . | . . . Average Corruption . | . . . Corruption Purged . | . . . Corruption Blocked . | . . . Overload Shots . | . . . Overflow Damage 155 | . 155 . Projectiles . | . . . Explosions 155 | . 155 . Melee . | . . . Knockbacks . | . . . Impact . | . . . Kinetic . | . . . Secondary . | . . . Self-Inflicted Damage 240 | . 240 . Shots 3 | . 3 . Rammed 1 | . 1 . Targets Rammed 1 | . 1 . Kicked . | . . . Crushed . | . . . Highest Temperature 99 | 90 99 7 Average Temperature 32 | 26 34 7 Received Heat Transfer 312 | . 168 144 Siege Activations . | . . . Martial Activations . | . . . Shielding Activations . | . . . Robots Disrupted . | . . . Combat Hostiles . | . . . Robots Corrupted 1 | . 1 . Combat Hostiles . | . . . Parts Fried 3 | . 3 . Impact Corruptions . | . . . Robots Melted . | . . . Combat Hostiles . | . . . Parts Melted . | . . . Heat Transferred 200 | . 200 . Parts Sabotaged . | . . . Parts Stolen . | . . . Parts Stripped . | . . . Power Chain Reactions 2 | 1 1 . Alert | -11 -10 -10 ------- Run | Yrd Mat Min Maximum Alert Level . | . . . Low Security (%) 100 | 100 100 100 Level 1 . | . . . Level 2 . | . . . Level 3 . | . . . Level 4 . | . . . Level 5 . | . . . High Security . | . . . Max Security . | . . . Peak Influence 103 | 10 103 . Initial . | . . . Average 15 | 1 25 . Influence Increases 454 | 45 409 . Destroy 0b10 Robot/C 180 | . 180 . Destroy 0b10 Robot/NC 90 | 45 45 . Destroy Leader 48 | . 48 . Successful Hack 17 | . 17 . Disable Machine 45 | . 45 . Destroy Structure 29 | . 29 . Partial Spotted 15 | . 15 . Lose Combat Pursuer 30 | . 30 . Influence Decreases 454 | 45 409 . Time Decay 395 | 45 350 . Lost Part 40 | . 40 . Purge Threat 19 | . 19 . Squads Dispatched 1 | . 1 . Investigation . | . . . Extermination . | . . . Reinforcement 1 | . 1 . Assault . | . . . Garrison . | . . . Intercept . | . . . Searches Triggered . | . . . Construction Impeded . | . . . Haulers Reinforced . | . . . Active Scanning Responses . | . . . Cargo Convoy Interrupts . | . . . Stealth | -11 -10 -10 --------- Run | Yrd Mat Min Distress Signals 2 | . 2 . Communications Jammed . | . . . Distress Signals . | . . . Times Spotted 22 | . 20 2 Peak Tracking Total 4 | . 4 2 Tactical Retreats 2 | . 2 . Traps | -11 -10 -10 ------- Run | Yrd Mat Min Traps Triggered . | . . . Indirectly . | . . . Trap Hack Attempts . | . . . Triggered . | . . . Disarmed . | . . . Reprogrammed . | . . . Reused . | . . . Traps Extracted . | . . . Installed . | . . . Triggered . | . . . Machines | -11 -10 -10 ---------- Run | Yrd Mat Min Machines Disabled 3 | . 3 . Max in Single Turn 2 | . 2 . Machines Repaired . | . . . Machines Dismantled . | . . . Machines Sabotaged . | . . . Overloaded Fab Kills . | . . . Hacking | -11 -10 -10 --------- Run | Yrd Mat Min Machines Accessed 7 | . 7 . Terminals 7 | . 7 . Fabricators . | . . . Repair Stations . | . . . Recycling Units . | . . . Scanalyzers . | . . . Garrison Access . | . . . Total Hacks 13 | . 13 . Successful 9 | . 9 . Failed 4 | . 4 . Catastrophic 1 | . 1 . Database Lockouts . | . . . Manual 1 | . 1 . Terminals 13 | . 13 . Fabricators . | . . . Repair Stations . | . . . Recycling Units . | . . . Scanalyzers . | . . . Garrison Access . | . . . Terminal Hacks 8 | . 8 . Robot Analysis 1 | . 1 . Prototype ID Bank 2 | . 2 . Branch Access Points 1 | . 1 . Unreport Threat 1 | . 1 . Locate Traps 1 | . 1 . Hauler Manifests 1 | . 1 . Zone Layout 1 | . 1 . Fabricator Hacks . | . . . Repair Station Hacks . | . . . Recycling Unit Hacks . | . . . Scanalyzer . | . . . Garrison Access Hacks . | . . . Unauthorized Hacks 1 | . 1 . Terminals 1 | . 1 . Operators 1 | . 1 . Fabricators . | . . . Repair Stations . | . . . Recycling Units . | . . . Scanalyzers . | . . . Garrison Access . | . . . Data Cores Recovered 1 | . 1 . Used 1 | . 1 . Hacking Detections 4 | . 4 . Full Trace Events . | . . . Feedback Events . | . . . Feedback Blocked . | . . . Robot Schematics Acquired . | . . . Robots Built . | . . . Authchips . | . . . Time . | . . . Total Robot Build Rating . | . . . Part Schematics Acquired . | . . . Parts Built . | . . . Authchips . | . . . Time . | . . . Total Part Build Rating . | . . . Parts Repaired . | . . . Time . | . . . Parts Recycled . | . . . Recycled Matter . | . . . Retrieved Matter . | . . . Retrieved Components . | . . . Parts Scanalyzed . | . . . Part Schematics Acquired . | . . . Parts Damaged . | . . . Bothacking | -11 -10 -10 ------------ Run | Yrd Mat Min Used RIF Installer . | . . . Robots Hacked . | . . . Non-combat . | . . . Combat . | . . . Robot Hacks Applied . | . . . Relay Couplers Released . | . . . Fabnet Peak Effective % . | . . . Robots Rewired . | . . . Allies Hacked . | . . . Hacks Repelled . | . . . Allies | -11 -10 -10 -------- Run | Yrd Mat Min Total Allies . | . . . Largest Group . | . . . Highest-Rated Group . | . . . Highest-Rated Ally . | . . . Total Orders . | . . . Ally Attacks . | . . . Total Damage . | . . . Kills . | . . . Allies Corrupted . | . . . Allies Melted . | . . . Intel | -11 -10 -10 ------- Run | Yrd Mat Min Active Infowar (turns) 634 | 66 568 . Terrain 574 | 6 568 . Seismic 60 | 60 . . Robot Analysis Total 1 | . 1 . Derelict Logs Recovered 1 | . . 1 Drone Launches . | . . . Drone Recoveries . | . . . Exploration | -11 -10 -10 ------------- Run | Yrd Mat Min Turns Passed 4152 | 279 2492 1381 Spaces Moved 901 | 133 558 210 Core 4 | 3 . 1 Treads 897 | 130 558 209 Legs . | . . . Wheels . | . . . Hover . | . . . Flight . | . . . Fastest Speed 50 | 50 160 480 Average Speed 422 | 157 396 659 Slowest Speed 1450 | 160 800 1450 Overloaded Moves . | . . . Propulsion Burnouts . | . . . Robots Hopped . | . . . Potential Cave-ins . | . . . Cave-ins Triggered . | . . . Exploration Rate (%) 48 | 8 93 44 Regions Visited 2 Branch Regions 1 Pre-discovered Areas . | . . . Known Exits Taken 1 | . 1 . Unknown Exits Taken 1 | 1 . . Scrap Searched 1 | . . 1 Spaces Dug . | . . . Terrain Destroyed 34 | 1 33 . Melee . | . . . Projectile . | . . . AOE 34 | 1 33 . Terrain Rammed . | . . . Walls Destroyed . | . . . Machines Disabled . | . . . Actions | -11 -10 -10 --------- Run | Yrd Mat Min Total 1114 | 169 733 212 Wait 90 | . 90 . Move 899 | 132 557 210 Hop . | . . . Pick Up 26 | 11 14 1 Fast Attach 1 | . 1 . Attach 11 | 7 4 . Detach 1 | . 1 . Swap 8 | 1 6 1 Drop 6 | 1 5 . Fire 71 | 17 54 . Melee . | . . . Ram . | . . . Kick . | . . . Crush 1 | . 1 . Escape Stasis . | . . . Rewire . | . . . Trap . | . . . Miscellaneous . | . . . Route ------- -11/Scrapyard -10/Materials (discovered 6 exits: [*Mat x3] / *Min x2 / *Sub) -10/Mines (discovered 1 exit: *Sub) History --------- Turn | Location | Event 36 | -11/Scrapyard | Discovered new exit (range 15) 280 | -11/Scrapyard | Entered Materials 315 | -10/Materials | Build established: Mutant 397 | -10/Materials | Discovered new exit (range 9) 408 | -10/Materials | Identified exit to Mines 631 | -10/Materials | Discovered new exit (range 16) 855 | -10/Materials | Discovered new exit (range 15) 1671 | -10/Materials | Discovered new exit (range 10) 1888 | -10/Materials | Discovered new exit (range 3) 1980 | -10/Materials | Lost 4 parts (2n2w) 2772 | -10/Materials | Entered Mines 3052 | -10/Mines | Learned Materials emergency access door positions 3541 | -10/Mines | Discovered new exit (range 8) 3705 | -10/Mines | Identified exit to Subcaves 4134 | -10/Mines | Core integrity fell below 50% 4149 | -10/Mines | Core integrity fell below 20% 4153 | -10/Mines | Destroyed by Y-45 Defender with Heavy Assault Rifle Last Messages --------------- Acquired 21 matter. K-01 Serf collects debris. Acquired derelict log, extracted data. Data stored: Materials emergency access points. K-01 Serf collects debris. Acquired Mining Claw. U-05 Engineer lays Concrete. T-07 Excavator is excavating. U-05 Engineer lays Concrete. T-07 Excavator is excavating. U-05 Engineer lays Concrete. EXIT=FOUND U-05 Engineer lays Concrete. U-05 Engineer builds a Wall. U-05 Engineer builds a Door. U-05 Engineer lays Concrete. EXIT=IDENTIFIED: SUBCAVES Critical hit (Burn: +37). Lgt. Assault Rifle destroyed. Lgt. Treads destroyed. Map ----- +----------------------------------------------------+ | | | | | | | | | | | | | | | | | | | ?????????????????????????????????????????????????? | | ?????????????????????????????????????????????????? | | ?????????????####????????????????????????????????? | | ??????#####?## ##???????????????????????????????? | | ??????# ### #???????????????????????????????? | | ??????# ##??????????????????????????????? | | ??????## ###????????????????????????????? | | ???????# ##???????????????????????????? | | ???????## #?????????????###???????????? | | ????????## #????????????? #???????????? | | ????????## #?????????????# #???????????? | | ???????## """ ##??????????#### #???????????" | | ???????# """ ##?########## # #??????????? | | ???????# """ ### #??????????"" | | ???????## ##??????????" | | ????????# ## #### ######## ##?????????" | | ????????# ### ##??# @#??????#### ##???????? | | ????????# #?## ###### ######????## ####?????# | | ????????# #??# ##?# t #?????# !!##????# | | ????????# #??# ##??# #?????# ! ##???# | | ????????# #??# ##"?## Yt #?????## ##### | | ????????# #??# #"" #Y #??????# | | ????????# #### #!! + #??????##! | | ????????# #[! + #???????#### #### | | ????????###### #"" # #??????????#####??? | | ?????????????# ##" ## #?????????????????? | | ?????????????# ####? #?????????????????? | | ?????######### #????## # ####?????????????????? | | ###??# #?????# # #????????????????????? | | #### ##########?????# # #????????????????????? | | + # #??????????????# # #????????????????????? | | + ## #??????????????# #????????????????????? | | # ##?????????????? ????????????????????? | | ### #?????????????? ? ????????????????????? | | #?????????????? ?? ???????????????????? | | ##?????????????? ??????????????????????? | | ####??????????????? ?????????????????###### | | ####??????????????????? ???????????????????# | | ##??????????????????????????????????????????# ! | | ????????????????????????????????????????????# !! | | ????????????????????????????????????????????# !! | +----------------------------------------------------+ Best States ------------- Heat Dissipation 25 Energy Generation 10 Energy Capacity 250 Matter Stores 300 Matter Capacity 300 Sight Range 16 Terrain Scan Range 16 Terrain Scan Density 10 Evasion (%) 40 Recoil Reduction 2 Item Schematics ----------------- None Robot Schematics ------------------ None Fabricated ------------ Nothing Repaired ---------- Nothing Alien Tech Used ----------------- None Achievements -------------- None Challenges ------------ None Game ------ Seed ZhirovNeutrinoExpander Manual? 0 Play Time 00:20:15 Cumulative 33.9 hours Start 2025.05.21 @ 07:36:40 End 2025.05.21 @ 07:56:54 Sessions 1 Manual Loads 0 Difficulty Rogue Special Mode None Game No. 6 Rogue 3 Adventurer 3 Explorer 0 Win Type - Total 2 Types 1/0/0/1/0/0/0/0/0/0 Lore% 14 Gallery% 22 Achievement% 33 Wizard Run 0 Options --------- Layout 1 ASCII 0 Keyboard 0 Movement Mouse Keybinds 0 Fullscreen 2 Font 32/SmallcapsGlow Map View 50x40 Zoom Use 0% Tactical HUD 0 Map Filters NONE Filters NONE Steam 0 RUN: b64b4bc3-dac1-43b9-984f-3f7c912b315a